bitfinex/quotes_BTCUSD_20251114
["timestamp","ask_amount","ask_price","bid_price","bid_amount"]
[1763125668659,0.09904293,95431.0,95430.0,0.01948178]
[1763125668959,0.09904293,95431.0,95430.0,0.34248178]
[1763125669293,0.02619336,95444.0,95430.0,0.55205508]
[1763125669499,0.0230295,95446.0,95434.0,0.20956755]
[1763125669705,0.09904293,95447.0,95434.0,0.20956755]
[1763125669706,0.04569005,95445.0,95434.0,0.20956755]
[1763125669911,0.01949696,95444.0,95430.0,0.92319348]
[1763125670091,0.01949696,95444.0,95436.0,0.20956382]
[1763125670518,0.01607033,95443.0,95430.0,0.09724105]
[1763125670717,0.10479654,95432.0,95419.0,0.0025667]
[1763125670956,0.02619693,95431.0,95419.0,0.08009687]
[1763125671355,0.02619693,95431.0,95419.0,0.0025667]
[1763125671818,0.01950124,95430.0,95419.0,0.0025667]
[1763125672028,0.10479654,95432.0,95430.0,0.10430128]
[1763125672455,0.0261643,95431.0,95430.0,0.10430128]
[1763125673721,0.06958304,95431.0,95430.0,0.10430128]
[1763125673945,0.06958304,95431.0,95430.0,0.08130128]
[1763125674352,0.07058304,95431.0,95430.0,0.08130128]
[1763125674733,0.0271643,95431.0,95430.0,0.08130128]
[1763125674953,0.0261643,95431.0,95430.0,0.08130128]
[1763125675204,0.0271643,95431.0,95430.0,0.08130128]
[1763125675405,0.0291643,95431.0,95430.0,0.08130128]
[1763125675553,0.0271643,95431.0,95430.0,0.08130128]
[1763125675757,0.01221086,95431.0,95430.0,0.08130128]
[1763125675921,0.02209722,95431.0,95430.0,0.09108696]
[1763125676123,0.002,95431.0,95430.0,0.09108696]
[1763125676329,0.02234111,95431.0,95430.0,0.09108696]
[1763125676544,0.02434111,95431.0,95430.0,0.09108696]
[1763125676762,0.06775985,95431.0,95430.0,0.09108696]
[1763125676964,0.05341873,95430.0,95384.0,0.07685096]
[1763125677168,0.04341874,95393.0,95384.0,0.07685096]
[1763125677573,0.323,95404.0,95384.0,0.07685096]
[1763125677574,0.03149257,95429.0,95384.0,0.07685096]
[1763125677768,0.323,95419.0,95384.0,0.20967725]
[1763125677974,0.03149257,95429.0,95380.0,0.02654738]
[1763125677975,0.10479654,95388.0,95380.0,0.02654738]
[1763125678194,0.10479654,95388.0,95387.0,0.20967217]
[1763125678471,0.10479654,95388.0,95385.0,0.20967657]
[1763125678656,0.10479654,95388.0,95386.0,0.2096729]
[1763125678818,0.10479654,95388.0,95386.0,0.20967268]
[1763125679023,0.10479654,95388.0,95386.0,0.20967314]
[1763125679223,0.10479654,95388.0,95385.0,0.20967657]
[1763125679545,0.10479654,95388.0,95386.0,0.209673]
[1763125680396,0.10479654,95403.0,95387.0,0.02096721]
[1763125680606,0.10479654,95403.0,95391.0,0.20966213]
[1763125680810,0.10479654,95403.0,95402.0,0.20963921]
[1763125680968,0.10479654,95403.0,95395.0,0.20965342]
[1763125681179,0.10479654,95403.0,95391.0,0.323]
[1763125681609,0.10579654,95403.0,95390.0,0.58066459]
[1763125681786,0.10479654,95403.0,95390.0,0.01901244]
[1763125681989,0.10479654,95403.0,95386.0,0.001]
[1763125682208,0.10479654,95388.0,95386.0,0.001]
[1763125682614,0.10479654,95388.0,95380.0,0.01656851]
[1763125682832,0.10479654,95388.0,95380.0,0.00013604]
[1763125683633,0.04341874,95386.0,95380.0,0.00013604]
[1763125683845,0.04341874,95386.0,95385.0,0.00050065]
[1763125684058,0.02919414,95386.0,95385.0,0.00050065]
[1763125684700,0.02919414,95386.0,95380.0,0.00013604]
[1763125684914,0.04341874,95384.0,95380.0,0.00013604]
[1763125685121,0.04341874,95382.0,95380.0,0.00013604]
[1763125685265,0.001,95386.0,95380.0,0.00013604]
[1763125685266,0.02919414,95381.0,95380.0,0.00013604]
[1763125686574,0.02919414,95381.0,95314.0,0.03758653]
[1763125686575,0.04341874,95348.0,95314.0,0.03758653]
[1763125686782,0.323,95349.0,95310.0,0.01250069]
[1763125686783,0.04341874,95346.0,95315.0,0.00045507]
[1763125687016,0.02919414,95345.0,95315.0,0.00045507]
[1763125687228,0.02235762,95348.0,95315.0,0.00045507]
[1763125687229,0.02919414,95344.0,95315.0,0.00045507]
[1763125687431,0.02235762,95348.0,95315.0,0.00045507]
[1763125687432,0.02919414,95343.0,95315.0,0.00045507]
[1763125687628,0.02919414,95342.0,95315.0,0.00045507]
[1763125687955,0.323,95349.0,95315.0,0.00045507]
[1763125687956,0.02919414,95341.0,95315.0,0.00045507]
[1763125688159,0.02919414,95340.0,95319.0,0.2098208]
[1763125688364,0.02919414,95339.0,95315.0,0.00045507]
[1763125688570,0.02919414,95338.0,95315.0,0.00045507]
[1763125688774,0.58066459,95350.0,95315.0,0.00045507]
[1763125688775,0.02919414,95337.0,95315.0,0.00045507]
[1763125688947,0.02919414,95336.0,95315.0,0.00045507]
[1763125689149,0.02919414,95335.0,95315.0,0.00045507]
[1763125689352,0.02919414,95334.0,95315.0,0.00045507]
[1763125689590,0.00973138,95333.0,95310.0,0.30622037]
[1763125689814,0.00973138,95332.0,95310.0,0.32488937]
[1763125690005,0.00973138,95331.0,95310.0,0.32488937]
[1763125690204,0.00973138,95330.0,95304.0,0.01059834]
[1763125690343,0.10479654,95305.0,95300.0,0.60823924]
[1763125690547,0.00973138,95304.0,95300.0,0.02859091]
[1763125690752,0.00973138,95303.0,95300.0,0.02859091]
[1763125690958,0.00973138,95302.0,95300.0,0.02176089]
[1763125691162,0.10479654,95305.0,95300.0,0.02176089]
[1763125691163,0.00973138,95301.0,95300.0,0.02176089]
[1763125691408,0.00973138,95301.0,95300.0,0.01787189]
[1763125691643,0.00973138,95301.0,95300.0,0.01887189]
[1763125691816,0.00973138,95301.0,95300.0,0.0001363]
[1763125691973,0.00973138,95301.0,95300.0,0.01823768]
[1763125692677,0.00973138,95301.0,95292.0,0.01965617]
[1763125692888,0.00973138,95300.0,95299.0,0.20986579]
[1763125693089,0.05152792,95305.0,95302.0,0.2098575]
[1763125693299,0.05152792,95305.0,95300.0,0.001]
[1763125693490,0.05152792,95305.0,95299.0,0.20986395]
[1763125693672,0.05152792,95305.0,95298.0,0.33345586]
[1763125693910,0.05152792,95305.0,95298.0,0.01045586]
[1763125694242,0.05152792,95305.0,95300.0,0.2098628]
[1763125694453,0.10479654,95320.0,95301.0,0.02098613]
[1763125694652,0.10479654,95320.0,95310.0,0.58066459]
[1763125694857,0.10479654,95320.0,95304.0,0.31275509]
[1763125695268,0.10479654,95305.0,95304.0,0.31275509]
[1763125695970,0.10479654,95305.0,95300.0,0.0208716]
[1763125696174,0.10479654,95305.0,95297.0,0.20986799]
[1763125696384,0.10479654,95305.0,95300.0,0.20986249]
[1763125696587,0.10479654,95305.0,95294.0,0.2098768]
[1763125696800,0.10479654,95305.0,95304.0,0.323]
[1763125697009,0.10479654,95305.0,95304.0,0.32313648]
[1763125697595,0.10479654,95305.0,95304.0,0.53299126]
[1763125697851,0.10479654,95305.0,95304.0,0.00013648]
[1763125698251,0.02034111,95319.0,95304.0,0.00013648]
[1763125698460,0.02034111,95319.0,95310.0,0.323]
[1763125698678,0.10479654,95320.0,95311.0,0.02098393]
[1763125698797,0.10479654,95320.0,95312.0,0.53283616]
[1763125699189,0.02034111,95342.0,95312.0,0.323]
[1763125699365,0.10479654,95324.0,95322.0,0.323]
[1763125699999,0.10479654,95324.0,95320.0,0.02050817]
[1763125700206,0.10479654,95324.0,95300.0,0.01049317]
[1763125700411,0.10479654,95324.0,95300.0,0.01712333]
[1763125700590,0.02034111,95323.0,95310.0,0.58066459]
[1763125701121,0.02034111,95323.0,95300.0,0.59778792]
[1763125701307,0.10479654,95309.0,95300.0,0.59778792]
[1763125701478,0.02034111,95323.0,95300.0,0.01712333]
[1763125701723,0.10479654,95309.0,95300.0,0.34012333]
[1763125701895,0.02034111,95308.0,95300.0,0.34012333]
[1763125702392,0.10479654,95309.0,95300.0,0.34012333]
[1763125703159,0.10479654,95309.0,95304.0,0.20998968]
[1763125703295,0.10479654,95309.0,95304.0,0.32313648]
[1763125703917,0.10479654,95309.0,95300.0,0.01712333]
[1763125704129,0.10493258,95309.0,95301.0,0.23084617]
[1763125704283,0.10493258,95309.0,95302.0,0.20985752]
[1763125704488,0.00013604,95309.0,95307.0,0.20984808]
[1763125705171,0.00013604,95309.0,95300.0,0.01742994]
[1763125705172,0.00965703,95308.0,95303.0,0.2098553]
[1763125705373,0.00965703,95307.0,95303.0,0.2098553]
[1763125705574,0.00965703,95306.0,95300.0,0.01742994]
[1763125705754,0.00965703,95305.0,95300.0,0.01742994]
[1763125705905,0.00013604,95309.0,95300.0,0.01742994]
[1763125705906,0.00965703,95304.0,95300.0,0.34042994]
[1763125706104,0.00965703,95303.0,95300.0,0.34042994]
[1763125706352,0.00966336,95302.0,95301.0,0.53286053]
[1763125706752,0.00966336,95302.0,95301.0,0.323]
[1763125707157,0.00966336,95302.0,95301.0,0.53286138]
[1763125707677,0.00966336,95302.0,95301.0,0.53386138]
[1763125708117,0.00966336,95302.0,95301.0,2.53386138]
[1763125709100,0.00013604,95309.0,95308.0,0.53284597]
[1763125709305,0.0098152,95309.0,95308.0,2.53284597]
[1763125709946,0.0098152,95309.0,95308.0,0.53284597]
[1763125710390,0.0098152,95309.0,95308.0,0.53384597]
[1763125710591,0.0098152,95309.0,95308.0,0.53284597]
[1763125710839,0.0098152,95309.0,95308.0,0.53484597]
[1763125711035,0.0098152,95309.0,95308.0,0.45684597]
[1763125711463,0.00876778,95309.0,95308.0,0.45684597]
[1763125711664,0.02034111,95347.0,95327.0,0.2098036]
[1763125711878,0.10479654,95329.0,95328.0,0.20980194]
[1763125712082,0.02034111,95345.0,95336.0,0.20978409]
[1763125712258,0.10479654,95334.0,95333.0,0.20979094]
[1763125712824,0.02034111,95343.0,95342.0,0.20977113]
[1763125713043,0.02034111,95343.0,95337.0,0.2097815]
[1763125713044,0.01941317,95343.0,95337.0,0.2097815]
[1763125713240,0.02179609,95347.0,95335.0,0.20978546]
[1763125713241,0.01941317,95342.0,95335.0,0.20978546]
[1763125713477,0.01941317,95341.0,95340.0,0.20977554]
[1763125713700,0.01941317,95346.0,95333.0,0.324]
[1763125713901,0.10479654,95334.0,95333.0,0.324]
[1763125714123,0.10479654,95334.0,95333.0,0.001]
[1763125714325,0.1242291,95334.0,95333.0,0.001]
[1763125714932,0.01943256,95334.0,95330.0,0.01775511]
[1763125715166,0.01934911,95346.0,95330.0,0.01775511]
[1763125715167,0.1242291,95333.0,95330.0,0.01775511]
[1763125715521,0.1242291,95333.0,95327.0,0.323]
[1763125715522,0.01943256,95332.0,95327.0,0.323]
[1763125715727,0.01943256,95332.0,95327.0,0.53280296]
[1763125715955,0.01943256,95332.0,95330.0,0.20979697]
[1763125716224,0.01946,95331.0,95330.0,0.21079534]
[1763125716441,0.03673545,95345.0,95332.0,0.20979232]
[1763125716694,0.10479654,95334.0,95331.0,0.20979448]
[1763125716938,0.01946665,95333.0,95331.0,0.20979448]
[1763125717166,0.10479654,95334.0,95332.0,0.20979212]
[1763125717390,0.01946583,95333.0,95330.0,0.01888138]
[1763125717624,0.01946583,95333.0,95327.0,0.001]
[1763125718021,0.01946583,95333.0,95327.0,0.21080302]
[1763125718235,0.01946583,95333.0,95326.0,0.323]
[1763125718446,0.01946583,95333.0,95320.0,0.02036976]
[1763125718447,0.01946583,95333.0,95323.0,0.34726302]
[1763125718653,0.01946583,95333.0,95331.0,0.21079338]
[1763125718866,0.01946583,95346.0,95345.0,0.20976453]
[1763125719068,0.01946616,95346.0,95345.0,0.20976453]
[1763125719274,0.01946616,95346.0,95340.0,0.01784014]
[1763125719479,0.01946616,95345.0,95340.0,0.01784014]
[1763125719685,0.01946616,95344.0,95341.0,0.20977275]
[1763125719878,0.00045498,95347.0,95343.0,0.20976893]
[1763125720118,0.01946545,95346.0,95341.0,0.20977143]
[1763125720323,0.01946545,95345.0,95343.0,0.20976788]
[1763125720526,0.01946545,95344.0,95343.0,0.53276788]
[1763125720753,0.01946545,95344.0,95343.0,0.323]
[1763125720952,0.01946545,95344.0,95343.0,0.53276893]
[1763125721490,0.01841663,95344.0,95343.0,0.53276893]
[1763125722110,0.00045498,95347.0,95346.0,0.53276233]
[1763125723408,0.0101808,95347.0,95346.0,0.53276233]
[1763125723853,0.0101808,95347.0,95346.0,0.323]
[1763125724245,0.02034111,95387.0,95347.0,0.323]
[1763125724446,0.00013643,95387.0,95386.0,0.53267437]
[1763125724649,0.00013643,95387.0,95386.0,0.323]
[1763125724849,0.00013643,95387.0,95386.0,0.53267437]
[1763125725486,0.00013643,95387.0,95386.0,0.4668586]
[1763125725487,0.00113643,95387.0,95386.0,0.4668586]
[1763125725697,0.00013643,95387.0,95386.0,0.4678586]
[1763125725907,0.00013643,95387.0,95386.0,0.25818423]
[1763125726506,0.00013643,95387.0,95386.0,0.25918423]
[1763125726744,0.00013643,95387.0,95386.0,0.4688586]
[1763125727744,0.00013643,95387.0,95386.0,0.25918423]
[1763125728951,0.00013643,95387.0,95386.0,0.25818423]
[1763125729332,0.00013643,95387.0,95386.0,0.25718423]
[1763125731795,0.00013643,95387.0,95386.0,0.25818423]
[1763125731979,0.00013643,95387.0,95386.0,0.25918423]
[1763125732138,0.00013643,95387.0,95386.0,0.25818423]
[1763125732355,0.00013643,95387.0,95386.0,0.25718423]
[1763125732568,0.00013643,95387.0,95386.0,0.19318423]
[1763125732963,0.00013643,95387.0,95386.0,0.19218423]
[1763125733798,0.10479654,95409.0,95400.0,0.69452604]
[1763125733993,0.10479654,95409.0,95400.0,0.55690442]
[1763125734196,0.10479654,95409.0,95408.0,0.20962602]
[1763125734397,0.02034111,95428.0,95405.0,0.20963152]
[1763125734732,0.10479654,95415.0,95414.0,0.20961175]
[1763125735192,0.02034111,95426.0,95418.0,0.20960272]
[1763125735394,0.00013633,95428.0,95415.0,0.20961064]
[1763125735561,0.00013633,95428.0,95400.0,0.01048218]
[1763125735562,0.10479654,95416.0,95412.0,0.20961678]
[1763125735746,0.10479654,95416.0,95410.0,0.22717959]
[1763125735948,0.10479654,95416.0,95410.0,0.01755854]
[1763125736159,0.02034111,95415.0,95401.0,0.323]
[1763125736362,0.00968583,95414.0,95401.0,0.323]
[1763125736578,0.02034111,95413.0,95401.0,0.323]
[1763125736780,0.00968583,95412.0,95401.0,0.323]
[1763125737028,0.02034111,95411.0,95400.0,0.34726302]
[1763125737177,0.10479654,95401.0,95400.0,0.67026302]
[1763125737382,0.11448237,95401.0,95386.0,0.01218423]
[1763125737586,0.03002694,95400.0,95391.0,0.323]
[1763125737784,0.00968583,95399.0,95391.0,0.323]
[1763125737988,0.02034111,95398.0,95390.0,0.34726302]
[1763125738168,0.00968583,95397.0,95390.0,0.34726302]
[1763125738367,0.02034111,95396.0,95391.0,0.323]
[1763125738572,0.00968583,95395.0,95391.0,0.323]
[1763125738911,0.00968583,95395.0,95386.0,0.22215499]
[1763125738912,0.00968583,95395.0,95386.0,0.01248281]
[1763125739136,0.03002694,95394.0,95381.0,0.323]
[1763125739289,0.10479654,95382.0,95381.0,0.323]
[1763125739658,0.10479654,95382.0,95381.0,0.33535221]
[1763125739862,0.02034111,95400.0,95394.0,0.20965602]
[1763125740009,0.00969378,95399.0,95390.0,0.34726302]
[1763125740220,0.03003489,95398.0,95390.0,0.34726302]
[1763125740388,0.03003489,95397.0,95390.0,0.34726302]
[1763125740594,0.03003489,95397.0,95386.0,0.002]
[1763125740595,0.00969378,95396.0,95386.0,0.002]
[1763125740971,0.01024438,95395.0,95386.0,0.34926302]
[1763125741176,0.00969608,95394.0,95387.0,0.23063718]
[1763125741381,0.00969617,95393.0,95387.0,0.02096721]
[1763125741554,0.02034111,95400.0,95392.0,0.20966118]
[1763125741792,0.001,95396.0,95391.0,0.20966338]
[1763125741985,0.00969656,95395.0,95391.0,0.20966338]
[1763125742187,0.00969656,95395.0,95393.0,0.20965799]
[1763125742486,0.00969656,95394.0,95386.0,0.325]
[1763125742689,0.02034111,95400.0,95386.0,0.325]
[1763125742690,0.00969656,95393.0,95386.0,0.325]
[1763125742916,0.00969656,95392.0,95386.0,0.325]
[1763125743105,0.00969656,95391.0,95386.0,0.325]
[1763125743291,0.00969656,95390.0,95386.0,0.325]
[1763125743497,0.00969656,95389.0,95387.0,0.001]
[1763125743673,0.02034111,95400.0,95387.0,0.001]
[1763125743674,0.00969656,95388.0,95387.0,0.001]
[1763125744077,0.00969656,95388.0,95386.0,0.002]
[1763125744275,0.02034111,95400.0,95386.0,0.002]
[1763125744276,0.00969656,95387.0,95386.0,0.002]
[1763125745032,0.01941336,95387.0,95386.0,0.002]
[1763125745204,0.00969656,95387.0,95386.0,0.002]
[1763125745419,0.04945103,95396.0,95386.0,0.002]
[1763125745626,0.04341874,95389.0,95386.0,0.002]
[1763125745786,0.04341874,95387.0,95360.0,0.34726302]
[1763125745990,0.09914654,95361.0,95360.0,0.34739945]
[1763125746188,0.1088431,95361.0,95360.0,0.00013643]
[1763125746390,0.00969656,95361.0,95360.0,0.00013643]
[1763125746622,0.00969656,95375.0,95360.0,0.02065429]
[1763125746823,0.10479654,95361.0,95358.0,0.19638914]
[1763125747027,0.00969656,95360.0,95355.0,0.01221214]
[1763125747222,0.00969656,95360.0,95350.0,0.01628822]
[1763125747473,0.0194359,95359.0,95350.0,0.35918725]
[1763125747674,0.02913246,95358.0,95350.0,0.01192423]
[1763125747873,0.02913246,95357.0,95333.0,0.20978896]
[1763125748053,0.10479654,95343.0,95340.0,0.01826409]
[1763125748254,0.00969656,95342.0,95340.0,0.01826409]
[1763125748660,0.00969656,95342.0,95340.0,0.34126409]
[1763125748866,0.00969656,95342.0,95340.0,0.55103936]
[1763125749364,0.1144931,95342.0,95340.0,0.34126409]
[1763125749574,0.1144931,95342.0,95300.0,0.02049316]
[1763125749575,0.02914945,95341.0,95300.0,0.34726302]
[1763125749776,0.10479654,95342.0,95300.0,0.34726302]
[1763125749777,0.323,95339.0,95300.0,0.34726302]
[1763125749999,0.10479654,95342.0,95320.0,0.34726302]
[1763125750000,0.04341874,95337.0,95320.0,0.34726302]
[1763125750199,0.02914945,95336.0,95320.0,0.34726302]
[1763125750417,0.02914945,95335.0,95310.0,0.02047718]
[1763125750616,0.02914945,95334.0,95326.0,0.34726302]
[1763125750823,0.02914945,95333.0,95326.0,0.34726302]
[1763125751017,0.10479654,95342.0,95326.0,0.34726302]
[1763125751018,0.02914945,95332.0,95326.0,0.34726302]
[1763125751222,0.00969656,95331.0,95326.0,0.34726302]
[1763125751426,0.14821528,95361.0,95326.0,0.34726302]
[1763125751427,0.00969656,95330.0,95326.0,0.34726302]
[1763125751598,0.00969656,95329.0,95321.0,0.323]
[1763125751818,0.10479654,95322.0,95321.0,0.323]
[1763125752062,0.1144931,95322.0,95321.0,0.53281735]
[1763125752253,0.1144931,95322.0,95321.0,0.32345498]
[1763125752483,0.1144931,95322.0,95321.0,0.00045498]
[1763125752617,0.1144931,95322.0,95310.0,0.01879322]
[1763125752827,0.00969656,95321.0,95310.0,0.01879322]
[1763125753434,0.00969656,95321.0,95300.0,0.35922267]
[1763125753622,0.10479654,95301.0,95290.0,0.34726302]
[1763125753832,0.10479654,95301.0,95290.0,0.01607453]
[1763125754052,0.10479654,95301.0,95290.0,0.3754332]
[1763125754270,0.10479654,95301.0,95290.0,0.36464852]
[1763125754472,0.10479654,95301.0,95291.0,0.323]
[1763125755072,0.10479654,95301.0,95290.0,0.36564852]
[1763125755279,0.00967787,95300.0,95291.0,0.323]
[1763125755495,0.00967787,95299.0,95297.0,0.20986882]
[1763125755701,0.10479654,95301.0,95291.0,0.323]
[1763125755868,0.00967647,95300.0,95297.0,0.20986925]
[1763125756071,0.10479654,95301.0,95297.0,0.20986925]
[1763125756346,0.10525068,95322.0,95291.0,0.323]
[1763125756549,0.10479654,95305.0,95304.0,0.20985478]
[1763125756752,0.10525068,95322.0,95300.0,0.33876934]
[1763125756959,0.00967028,95321.0,95318.0,0.20982307]
[1763125757163,0.00967028,95320.0,95318.0,0.20982307]
[1763125757334,0.00967028,95319.0,95310.0,0.34726302]
[1763125757535,0.00967028,95318.0,95304.0,0.323]
[1763125757711,0.10625068,95322.0,95304.0,0.323]
[1763125757712,0.10479654,95305.0,95304.0,0.323]
[1763125757920,0.10479654,95305.0,95290.0,0.03202287]
[1763125758099,0.10479654,95305.0,95295.0,0.34726302]
[1763125758524,0.10479654,95305.0,95301.0,0.20986064]
[1763125758712,0.10479654,95305.0,95302.0,0.20985792]
[1763125758911,0.10479654,95305.0,95300.0,0.01700523]
[1763125759145,0.10479654,95305.0,95299.0,0.20986375]
[1763125759350,0.10525068,95322.0,95312.0,0.20983697]
[1763125759552,0.00965654,95321.0,95310.0,0.34726302]
[1763125759788,0.00965654,95320.0,95303.0,0.20985509]
[1763125759940,0.10479654,95304.0,95300.0,0.01727915]
[1763125760148,0.10479654,95304.0,95294.0,0.34726302]
[1763125760573,0.10479654,95304.0,95299.0,0.001]
[1763125760734,0.10479654,95304.0,95294.0,0.55713817]
[1763125760937,0.10479654,95304.0,95296.0,0.20987233]
[1763125761136,0.10479654,95304.0,95296.0,0.20987063]
[1763125761336,0.10479654,95304.0,95297.0,0.20986945]
[1763125761559,0.10479654,95304.0,95294.0,0.34726302]
[1763125761981,0.10479654,95304.0,95290.0,0.032209]
[1763125762178,0.00964783,95303.0,95290.0,0.37947202]
[1763125762382,0.00964712,95302.0,95280.0,0.36547455]
[1763125762561,0.10479654,95282.0,95281.0,0.323]
[1763125763303,0.10479654,95282.0,95281.0,0.33542429]
[1763125763720,0.10479654,95282.0,95281.0,0.01356033]
[1763125763868,0.10479654,95282.0,95281.0,0.00113604]
[1763125764065,0.10479654,95282.0,95281.0,0.00213604]
[1763125765584,0.10479654,95282.0,95281.0,0.00113604]
[1763125765787,0.10479654,95282.0,95281.0,0.00013604]
[1763125766127,0.10479654,95282.0,95281.0,0.00213604]
[1763125766472,0.11443723,95282.0,95281.0,0.00013604]
[1763125766875,0.11443723,95282.0,95281.0,0.00113604]
[1763125767079,0.10479654,95282.0,95281.0,0.32413604]
[1763125767324,0.02034111,95302.0,95281.0,0.32413604]
[1763125767499,0.10479654,95282.0,95281.0,0.32413604]
[1763125767716,0.02034111,95301.0,95282.0,0.20990323]
[1763125768063,0.02998691,95300.0,95290.0,0.55714839]
[1763125768252,0.0096458,95299.0,95281.0,0.32413604]
[1763125768461,0.02034111,95298.0,95281.0,0.53403927]
[1763125768679,0.10479654,95282.0,95280.0,0.01798942]
[1763125768824,0.02034111,95297.0,95272.0,0.34726302]
[1763125769024,0.10479654,95304.0,95280.0,0.01928261]
[1763125769025,0.10479654,95282.0,95280.0,0.01928261]
[1763125769394,0.1049327,95282.0,95280.0,0.01928261]
[1763125769776,0.1049327,95282.0,95280.0,0.001]
[1763125770130,0.00965603,95281.0,95280.0,0.001]
[1763125771764,0.00965603,95281.0,95271.0,0.20992708]
[1763125771958,0.00965603,95280.0,95274.0,0.20991962]
[1763125772159,0.00965603,95279.0,95270.0,0.58272482]
[1763125772291,0.00965603,95278.0,95270.0,0.79265229]
[1763125772493,0.00965603,95277.0,95276.0,0.20991645]
[1763125772699,0.1049327,95282.0,95281.0,0.20990543]
[1763125772933,0.11460237,95282.0,95281.0,0.20990543]
[1763125773403,0.11460237,95282.0,95280.0,0.20990744]
[1763125773545,0.00966967,95281.0,95273.0,0.20992306]
[1763125773747,0.00966967,95281.0,95276.0,0.001]
[1763125774736,0.00966967,95281.0,95271.0,0.323]
[1763125774938,0.00966967,95281.0,95270.0,0.58272482]
[1763125775198,0.02034111,95280.0,95270.0,0.58272482]
[1763125775398,0.00966967,95279.0,95270.0,0.58272482]
[1763125775542,0.03001078,95279.0,95270.0,0.58272482]
[1763125775743,0.00966967,95278.0,95271.0,0.02099274]
[1763125775946,0.00969757,95277.0,95276.0,0.20991645]
[1763125776880,0.00013616,95282.0,95281.0,0.20990543]
[1763125777229,0.00984158,95282.0,95281.0,0.20990543]
[1763125777425,0.00984158,95282.0,95272.0,0.323]
[1763125777627,0.10479654,95280.0,95277.0,0.20991327]
[1763125777783,0.00970542,95279.0,95278.0,0.20991026]
[1763125778843,0.00970542,95279.0,95278.0,0.20991204]
[1763125779256,0.02916893,95279.0,95278.0,0.001]
[1763125782741,0.02916893,95279.0,95270.0,0.52460112]
[1763125782870,0.04951004,95278.0,95270.0,0.52460112]
[1763125783070,0.02916893,95277.0,95276.0,0.20991591]
[1763125783624,0.02916893,95277.0,95273.0,0.20992212]
[1763125783841,0.02916893,95276.0,95271.0,0.20992747]
[1763125783973,0.02916893,95275.0,95270.0,0.52460112]
[1763125784175,0.02916893,95274.0,95273.0,0.20992277]
[1763125785203,0.02916893,95274.0,95273.0,0.20992306]
[1763125785830,0.02916893,95274.0,95273.0,0.21092306]
[1763125788390,0.00970542,95274.0,95273.0,2.53392306]
[1763125788587,0.00970542,95274.0,95273.0,2.54435794]
[1763125788800,0.00970542,95274.0,95273.0,2.60070346]
[1763125789196,0.00013616,95282.0,95281.0,0.323]
[1763125789399,0.01964258,95282.0,95281.0,0.323]
[1763125789597,0.02939579,95282.0,95281.0,0.323]
[1763125789802,0.02939579,95282.0,95281.0,0.245]
[1763125790183,0.00988937,95282.0,95280.0,0.23060742]
[1763125790415,0.00975321,95281.0,95280.0,0.28695294]
[1763125790584,0.00013616,95282.0,95280.0,0.23060742]
[1763125790786,0.00013616,95282.0,95281.0,0.05661974]
[1763125791016,0.00989397,95282.0,95280.0,0.28722716]
[1763125791353,0.00013616,95282.0,95281.0,0.0566123]
[1763125791475,0.00013616,95282.0,95281.0,0.001]
[1763125791676,0.00013616,95282.0,95280.0,0.31031333]
[1763125791953,0.00013616,95282.0,95280.0,0.63231333]
[1763125792288,0.00013616,95282.0,95281.0,2.14679708]
[1763125792437,0.00013616,95282.0,95281.0,2.12580654]
[1763125792637,0.00013616,95282.0,95281.0,2.12680654]
[1763125792836,0.00013616,95282.0,95281.0,2.02201]
[1763125793041,0.00013616,95282.0,95281.0,2.02101]
[1763125793760,0.00013616,95282.0,95281.0,2.02201]
[1763125794264,0.00013616,95282.0,95281.0,2.07857015]
[1763125794492,0.00013616,95282.0,95281.0,2.40157015]
[1763125794641,0.00013616,95282.0,95281.0,2.34501]
[1763125794838,0.00013616,95282.0,95281.0,2.40157015]
[1763125795042,0.00013616,95282.0,95281.0,2.34601]
[1763125797114,0.00013616,95282.0,95281.0,2.26801]
[1763125798089,0.00013616,95282.0,95281.0,0.325]
[1763125799835,0.00013616,95282.0,95281.0,0.38152338]
[1763125800068,0.00013616,95282.0,95281.0,0.325]
[1763125800885,0.00013616,95282.0,95281.0,0.57832417]
[1763125801091,0.00013616,95282.0,95281.0,2.59933417]
[1763125801330,0.00013616,95282.0,95281.0,2.55591543]
[1763125801529,0.00013616,95282.0,95281.0,0.55591543]
[1763125802499,0.00013616,95282.0,95281.0,0.55391543]
[1763125802705,0.00013616,95282.0,95281.0,0.55491543]
[1763125802877,0.00013616,95282.0,95281.0,0.55591543]
[1763125803492,0.00013616,95282.0,95281.0,0.55391543]
[1763125803744,0.00013616,95282.0,95281.0,0.59933417]
[1763125804401,0.00013616,95282.0,95281.0,0.60033417]
[1763125804613,0.10479654,95341.0,95340.0,0.20977554]
[1763125804802,0.13444999,95341.0,95340.0,0.55011854]
[1763125805013,0.02965345,95341.0,95340.0,0.49211854]
[1763125805424,0.02965345,95341.0,95340.0,0.323]
[1763125805563,0.02965345,95341.0,95330.0,0.59982221]
[1763125805813,0.10479654,95331.0,95330.0,0.34049739]
[1763125806014,0.11452936,95331.0,95330.0,0.34049739]
[1763125806243,0.10479654,95331.0,95330.0,0.34049739]
[1763125809349,0.00045498,95341.0,95330.0,0.34049739]
[1763125809559,0.00045498,95341.0,95340.0,0.34393239]
[1763125809771,0.00045498,95341.0,95340.0,0.55370793]
[1763125809974,0.00045498,95341.0,95340.0,0.34393239]
[1763125810579,0.00045498,95341.0,95340.0,0.02093239]
[1763125810726,0.00045498,95341.0,95337.0,0.323]
[1763125810952,0.10479654,95338.0,95337.0,0.323]
[1763125811151,0.00045498,95341.0,95340.0,0.323]
[1763125811354,0.00145498,95341.0,95340.0,0.323]
[1763125811554,0.00045498,95341.0,95340.0,0.323]
[1763125812009,0.00045498,95341.0,95320.0,0.01049097]
[1763125812010,0.00045498,95341.0,95330.0,0.59966869]
[1763125812209,0.00045498,95341.0,95340.0,0.001]
[1763125812410,0.00045498,95341.0,95331.0,0.288]
[1763125812411,0.00145498,95341.0,95331.0,0.288]
[1763125813162,0.10479654,95332.0,95320.0,0.58232482]
[1763125813372,0.02034111,95331.0,95320.0,0.58232482]
[1763125813539,0.02034111,95331.0,95323.0,0.20981229]
[1763125813756,0.02034111,95331.0,95320.0,0.60097643]
[1763125814121,0.02034111,95331.0,95322.0,0.20981407]
[1763125814291,0.10479654,95332.0,95331.0,0.20979534]
[1763125814719,0.00045498,95341.0,95340.0,0.20977554]
[1763125814948,0.00045498,95341.0,95340.0,0.53277554]
[1763125815156,0.00045498,95341.0,95340.0,0.54992873]
[1763125816276,0.00045498,95341.0,95340.0,0.55092873]
[1763125816680,0.00045498,95341.0,95340.0,0.34015319]
[1763125818245,0.00145498,95341.0,95340.0,0.34015319]
[1763125818390,0.00045498,95341.0,95340.0,0.34015319]
[1763125818594,0.00045498,95341.0,95320.0,0.02081482]
[1763125818819,0.10479654,95321.0,95314.0,0.05648979]
[1763125819016,0.10479654,95321.0,95310.0,0.63881461]